OrganisationURI,OrganisationLabel,OrganisationalUnit,TransactionNumber,Invoice Ref.,BeneficiaryName,Expense Type,Purpose,PaymentDate,Amount,
http://statistics.data.gov.uk/id/local-authority-district/23UB,Cheltenham Borough Council,Cemetery & Crematorium Repairs & Maintenance,14037193,175128,A & E Fire Equipment Limited,R2004-CCM111,R & M of Build Programmed,05/06/2015,3549.72,
http://statistics.data.gov.uk/id/local-authority-district/23UB,Cheltenham Borough Council,Repairs and Maintenance,14037116,175243,A & E Fire Equipment Limited,R2042-HRA100,R & M of Build Fire Systems,05/06/2015,1086.47,
http://statistics.data.gov.uk/id/local-authority-district/23UB,Cheltenham Borough Council,Fire Protection,14037731,29557,Allhands Limited T/A Harrold Jones Services,C1107-CAH015,Building Works,19/06/2015,3008.00,
http://statistics.data.gov.uk/id/local-authority-district/23UB,Cheltenham Borough Council,Council Tax Collection,14037305,62773,Alpha Colour Printers Limited,R4308-LTC001,Stationery,05/06/2015,1852.00,
http://statistics.data.gov.uk/id/local-authority-district/23UB,Cheltenham Borough Council,Development Control - Applications,14037566,11707,Artful Limited,R4317-DEV001,Non Staff Advertising,19/06/2015,2418.00,
http://statistics.data.gov.uk/id/local-authority-district/23UB,Cheltenham Borough Council,Recreation Centre Repairs & Maintenance,14037775,54011,AVT Reliability Pump Division,R2004-REC111,R & M of Build Programmed,26/06/2015,2746.00,
http://statistics.data.gov.uk/id/local-authority-district/23UB,Cheltenham Borough Council,Recreation Centre Repairs & Maintenance,14037824,54049,AVT Reliability Pump Division,R2004-REC111,R & M of Build Programmed,26/06/2015,1346.00,
http://statistics.data.gov.uk/id/local-authority-district/23UB,Cheltenham Borough Council,Cheltenham Business Partnership,14037483,153005-017,Blackadder Media Limited,R4411-HLD130,Consultancy Fees,12/06/2015,4200.00,
http://statistics.data.gov.uk/id/local-authority-district/23UB,Cheltenham Borough Council,Art Gallery & Museum Repairs & Maintenance,14037268,BG0299015 0006 AP,Blackwall Green T/A Arthur J Gallagher (UK) Limited,R2800-CUL117,Insurances - Premises,05/06/2015,4000.00,
http://statistics.data.gov.uk/id/local-authority-district/23UB,Cheltenham Borough Council,"Cemetery, Crematorium and Churchyards",14037390,25837254 A029,British Telecommunications plc,R4548-CCM001,IT - Cabling and Network,12/06/2015,1330.00,
http://statistics.data.gov.uk/id/local-authority-district/23UB,Cheltenham Borough Council,Animal Control,14037800,800024384,Bromsgrove District Council,R4413-REG003,Dog Kennels Fees,19/06/2015,1365.11,
http://statistics.data.gov.uk/id/local-authority-district/23UB,Cheltenham Borough Council,Neighbourhood works 2012/13,14037279,1406,Brown Bull,C1107-CAH005,Building Works,05/06/2015,4642.90,
http://statistics.data.gov.uk/id/local-authority-district/23UB,Cheltenham Borough Council,Environmental Health General,14037874,110890,Buckingham Futures Limited,R1100-REG001,Agency Staff,26/06/2015,1509.75,
http://statistics.data.gov.uk/id/local-authority-district/23UB,Cheltenham Borough Council,Environmental Health General,14037873,110891,Buckingham Futures Limited,R1100-REG001,Agency Staff,26/06/2015,1256.40,
http://statistics.data.gov.uk/id/local-authority-district/23UB,Cheltenham Borough Council,Environmental Health General,14037169,111027,Buckingham Futures Limited,R1100-REG001,Agency Staff,05/06/2015,1256.40,
http://statistics.data.gov.uk/id/local-authority-district/23UB,Cheltenham Borough Council,Environmental Health General,14037168,111249,Buckingham Futures Limited,R1100-REG001,Agency Staff,05/06/2015,1256.40,
http://statistics.data.gov.uk/id/local-authority-district/23UB,Cheltenham Borough Council,Environmental Health General,14037357,111432,Buckingham Futures Limited,R1100-REG001,Agency Staff,12/06/2015,1256.40,
http://statistics.data.gov.uk/id/local-authority-district/23UB,Cheltenham Borough Council,Environmental Health General,14037379,111586,Buckingham Futures Limited,R1100-REG001,Agency Staff,12/06/2015,1238.95,
http://statistics.data.gov.uk/id/local-authority-district/23UB,Cheltenham Borough Council,Environmental Health General,14037791,111893,Buckingham Futures Limited,R1100-REG001,Agency Staff,26/06/2015,1256.40,
http://statistics.data.gov.uk/id/local-authority-district/23UB,Cheltenham Borough Council,Environmental Health General,14037875,112165,Buckingham Futures Limited,R1100-REG001,Agency Staff,26/06/2015,1256.40,
http://statistics.data.gov.uk/id/local-authority-district/23UB,Cheltenham Borough Council,Supervision and Management,14037735,4248,C Mawdsley t/a Arbor Tree Care,R2070-HRA110,Tree Work,26/06/2015,570.00,
http://statistics.data.gov.uk/id/local-authority-district/23UB,Cheltenham Borough Council,Gain/loss on Sale of HRA Non-current Assets,14037712,6017013621,Capita Property and Infrastructure Limited,R8301-HRA400,Gain/loss on disposal of non-current assets,19/06/2015,6449.20,
http://statistics.data.gov.uk/id/local-authority-district/23UB,Cheltenham Borough Council,Community Welfare Grants,14037365,CMS/06/15,Cheltenham Arts Council,R6280-GBD001,Grants,05/06/2015,5000.00,
http://statistics.data.gov.uk/id/local-authority-district/23UB,Cheltenham Borough Council,Revenues & Benefits Overheads,14037472,M/RB029539,Civica UK Limited,R4534-LTC101,IT - Maint Agreements,12/06/2015,69862.61,
http://statistics.data.gov.uk/id/local-authority-district/23UB,Cheltenham Borough Council,CBH Intercompany Account,14037472,M/RB029539,Civica UK Limited,R4534-HLD101,IT - Maint Agreements,12/06/2015,1000.16,
http://statistics.data.gov.uk/id/local-authority-district/23UB,Cheltenham Borough Council,"Cemetery, Crematorium and Churchyards",14037761,547366,Comensura Limited,R1100-CCM001,Agency Staff,26/06/2015,6544.50,
http://statistics.data.gov.uk/id/local-authority-district/23UB,Cheltenham Borough Council,"Cemetery, Crematorium and Churchyards",14037760,547783,Comensura Limited,R1100-CCM001,Agency Staff,19/06/2015,4590.11,
http://statistics.data.gov.uk/id/local-authority-district/23UB,Cheltenham Borough Council,"Cemetery, Crematorium and Churchyards",14037614,548177,Comensura Limited,R1100-CCM001,Agency Staff,19/06/2015,3841.90,
http://statistics.data.gov.uk/id/local-authority-district/23UB,Cheltenham Borough Council,"Cemetery, Crematorium and Churchyards",14037709,548343,Comensura Limited,R1100-CCM001,Agency Staff,26/06/2015,1993.36,
http://statistics.data.gov.uk/id/local-authority-district/23UB,Cheltenham Borough Council,Cheltenham Municipal Offices,14037709,548343,Comensura Limited,R1100-ADB101,Agency Staff,26/06/2015,528.15,
http://statistics.data.gov.uk/id/local-authority-district/23UB,Cheltenham Borough Council,Land & Property presale costs,14037376,CA1061-1,Curtins Consulting Limited,C1005-CAP401,Surveyors Fees,12/06/2015,2000.00,
http://statistics.data.gov.uk/id/local-authority-district/23UB,Cheltenham Borough Council,Land & Property presale costs,14037377,CA1061-2,Curtins Consulting Limited,C1005-CAP401,Surveyors Fees,12/06/2015,750.00,
http://statistics.data.gov.uk/id/local-authority-district/23UB,Cheltenham Borough Council,Land & Property presale costs,14037378,CA1061-3,Curtins Consulting Limited,C1005-CAP401,Surveyors Fees,12/06/2015,2000.00,
http://statistics.data.gov.uk/id/local-authority-district/23UB,Cheltenham Borough Council,Licensing,14037647,976744,Disclosure & Barring Service,R1601-REG002,CRB Police Checks,19/06/2015,1012.00,
http://statistics.data.gov.uk/id/local-authority-district/23UB,Cheltenham Borough Council,Development Control - Applications,14037473,28473,DPDS Regional Limited - DPDS Consulting Group,R4400-DEV001,Services - Professional Fees,12/06/2015,2450.00,
http://statistics.data.gov.uk/id/local-authority-district/23UB,Cheltenham Borough Council,Recreation Centre Repairs & Maintenance,14037766,301267/5/2015,Ener-G Combined Power (South) Limited,R2100-REC111,Electricity,26/06/2015,4744.60,
http://statistics.data.gov.uk/id/local-authority-district/23UB,Cheltenham Borough Council,Joint Core Strategy,14037680,gct247-13,Enfusion Limited,R4400-PLP101,Services - Professional Fees,19/06/2015,1870.00,
http://statistics.data.gov.uk/id/local-authority-district/23UB,Cheltenham Borough Council,Neighbourhood works 2012/13,14037284,WM006027,English Landscapes Limited t/a The Landscape Group,C1107-CAH005,Building Works,05/06/2015,14900.10,
http://statistics.data.gov.uk/id/local-authority-district/23UB,Cheltenham Borough Council,"Paths, Fences & Walls",14037297,WM006038,English Landscapes Limited t/a The Landscape Group,C1107-CAH021,Building Works,05/06/2015,1513.71,
http://statistics.data.gov.uk/id/local-authority-district/23UB,Cheltenham Borough Council,Pest Control,14037516,442610,Facelift (GB) Limited,R4001-REG018,Tools & Equipment - Hire,19/06/2015,1425.00,
http://statistics.data.gov.uk/id/local-authority-district/23UB,Cheltenham Borough Council,Internal Improvements - Communal,14037515,IN001090,Facilities Management & Builiding Repairs Limited,C1107-CAH035,Building Works,12/06/2015,24130.00,
http://statistics.data.gov.uk/id/local-authority-district/23UB,Cheltenham Borough Council,Joint Core Strategy,14037346,35804,Fosters Rooms Limited,R4400-PLP101,Services - Professional Fees,26/06/2015,2040.00,
http://statistics.data.gov.uk/id/local-authority-district/23UB,Cheltenham Borough Council,Civic Events,14037500,35846,Fosters Rooms Limited,R4401-DRM012,Services - Fees and Charges,12/06/2015,729.00,
http://statistics.data.gov.uk/id/local-authority-district/23UB,Cheltenham Borough Council,Recycling Centres,14037507,25426,GJF Fabrications Limited,R2004-RYC004,R & M of Build Programmed,12/06/2015,3850.00,
http://statistics.data.gov.uk/id/local-authority-district/23UB,Cheltenham Borough Council,Parliamentary Elections,14037264,141504,Gloucester Event Hire,R4401-ELE004,Services - Fees and Charges,05/06/2015,630.00,
http://statistics.data.gov.uk/id/local-authority-district/23UB,Cheltenham Borough Council,Business Improvement/Transformation,14037687,1800347861,Gloucestershire County Council,R4400-SUP017,Services - Professional Fees,12/06/2015,7051.80,
http://statistics.data.gov.uk/id/local-authority-district/23UB,Cheltenham Borough Council,Emergency Planning,14037096,1800357912,Gloucestershire County Council,R4400-EMP001,Services - Professional Fees,05/06/2015,2000.00,
http://statistics.data.gov.uk/id/local-authority-district/23UB,Cheltenham Borough Council,Land Charges,14037386,1800358255,Gloucestershire County Council,R4401-BUC004,Services - Fees and Charges,12/06/2015,2640.00,
http://statistics.data.gov.uk/id/local-authority-district/23UB,Cheltenham Borough Council,Private Sector Housing Grants,14037651,1800360685,Gloucestershire County Council,R6280-PSH001,Grants,19/06/2015,7975.00,
http://statistics.data.gov.uk/id/local-authority-district/23UB,Cheltenham Borough Council,Homelessness,14037265,160515,Gloucestershire Nightstop,R6280-HOM001,Grants,05/06/2015,5000.00,
http://statistics.data.gov.uk/id/local-authority-district/23UB,Cheltenham Borough Council,"Cemetery, Crematorium and Churchyards",14037683,10914,Goldingham Contracts Limited,R2075-CCM001,Grounds Maintenance - Contract,12/06/2015,562.00,
http://statistics.data.gov.uk/id/local-authority-district/23UB,Cheltenham Borough Council,Repairs and Maintenance,14037350,2923,Gooch Group Limited (Cleaning not Products),R2701-HRA100,Window Cleaning,12/06/2015,600.23,
http://statistics.data.gov.uk/id/local-authority-district/23UB,Cheltenham Borough Council,Corporate Management,14037492,8367903,Grant Thornton UK LLP,R4430-COR001,Audit Fees,12/06/2015,13250.00,
http://statistics.data.gov.uk/id/local-authority-district/23UB,Cheltenham Borough Council,Cheltenham Depot,14037603,2330,Greenway Partnership Limited T/A GPL Building Services,R2004-ADB103,R & M of Build Programmed,19/06/2015,1947.00,
http://statistics.data.gov.uk/id/local-authority-district/23UB,Cheltenham Borough Council,Sports & Open Spaces Repairs & Maintenance,14037267,2578,Greenway Partnership Limited T/A GPL Building Services,R2004-OPS122,R & M of Build Programmed,05/06/2015,6705.00,
http://statistics.data.gov.uk/id/local-authority-district/23UB,Cheltenham Borough Council,Sports & Open Spaces Repairs & Maintenance,14037602,2604,Greenway Partnership Limited T/A GPL Building Services,R2004-OPS122,R & M of Build Programmed,19/06/2015,750.00,
http://statistics.data.gov.uk/id/local-authority-district/23UB,Cheltenham Borough Council,Parliamentary Elections,14037156,2725,Greenway Partnership Limited T/A GPL Building Services,R4401-ELE004,Services - Fees and Charges,05/06/2015,8918.33,
http://statistics.data.gov.uk/id/local-authority-district/23UB,Cheltenham Borough Council,Car Parks - Off Street R&M,14037181,2732,Greenway Partnership Limited T/A GPL Building Services,R2004-CPK101,R & M of Build Programmed,05/06/2015,7364.00,
http://statistics.data.gov.uk/id/local-authority-district/23UB,Cheltenham Borough Council,Income and Expenditure on Investment Properties and Changes in Their Fair Value,14037604,2735,Greenway Partnership Limited T/A GPL Building Services,R2004-FIE040,R & M of Build Programmed,19/06/2015,737.00,
http://statistics.data.gov.uk/id/local-authority-district/23UB,Cheltenham Borough Council,Prince of Wales Stadium Repairs & Maintenance,14037248,2744,Greenway Partnership Limited T/A GPL Building Services,R2004-REC112,R & M of Build Programmed,05/06/2015,1840.00,
http://statistics.data.gov.uk/id/local-authority-district/23UB,Cheltenham Borough Council,Cheltenham Depot,14037249,2753,Greenway Partnership Limited T/A GPL Building Services,R2043-ADB103,R & M of Build Drain Cleaning,05/06/2015,1305.04,
http://statistics.data.gov.uk/id/local-authority-district/23UB,Cheltenham Borough Council,Cheltenham Depot,14037601,2758,Greenway Partnership Limited T/A GPL Building Services,R2062-ADB103,R & M of Build Cyclical Electrical Remedials,19/06/2015,3752.00,
http://statistics.data.gov.uk/id/local-authority-district/23UB,Cheltenham Borough Council,Parks & Gardens Operations,14037498,2778,Greenway Partnership Limited T/A GPL Building Services,R2007-OPS001,R & M of Plant Contracts,12/06/2015,3414.96,
http://statistics.data.gov.uk/id/local-authority-district/23UB,Cheltenham Borough Council,Sports & Open Spaces Repairs & Maintenance,14037778,2779,Greenway Partnership Limited T/A GPL Building Services,R2004-OPS122,R & M of Build Programmed,26/06/2015,3185.00,
http://statistics.data.gov.uk/id/local-authority-district/23UB,Cheltenham Borough Council,Abandoned Vehicles,14037095,441,Harry Buckland,R4401-STC011,Services - Fees and Charges,05/06/2015,820.00,
http://statistics.data.gov.uk/id/local-authority-district/23UB,Cheltenham Borough Council,Abandoned Vehicles,14037094,446,Harry Buckland,R4401-STC011,Services - Fees and Charges,05/06/2015,800.00,
http://statistics.data.gov.uk/id/local-authority-district/23UB,Cheltenham Borough Council,Abandoned Vehicles,14037494,448,Harry Buckland,R4401-STC011,Services - Fees and Charges,12/06/2015,1360.00,
http://statistics.data.gov.uk/id/local-authority-district/23UB,Cheltenham Borough Council,Abandoned Vehicles,14037495,449,Harry Buckland,R4401-STC011,Services - Fees and Charges,12/06/2015,1180.00,
http://statistics.data.gov.uk/id/local-authority-district/23UB,Cheltenham Borough Council,Property Services,14037246,1005421404,Hays Specialist Recruitment Limited,R1100-SUP025,Agency Staff,05/06/2015,1000.96,
http://statistics.data.gov.uk/id/local-authority-district/23UB,Cheltenham Borough Council,Property Services,14037245,1005434270,Hays Specialist Recruitment Limited,R1100-SUP025,Agency Staff,05/06/2015,883.20,
http://statistics.data.gov.uk/id/local-authority-district/23UB,Cheltenham Borough Council,Property Services,14037768,1005482099,Hays Specialist Recruitment Limited,R1100-SUP025,Agency Staff,26/06/2015,1089.28,
http://statistics.data.gov.uk/id/local-authority-district/23UB,Cheltenham Borough Council,Property Services,14037767,1005505697,Hays Specialist Recruitment Limited,R1100-SUP025,Agency Staff,26/06/2015,883.20,
http://statistics.data.gov.uk/id/local-authority-district/23UB,Cheltenham Borough Council,Joint Core Strategy,14037471,HDH 14/15-055,HDH Planning & Development Limited,R4400-PLP101,Services - Professional Fees,12/06/2015,3469.30,
http://statistics.data.gov.uk/id/local-authority-district/23UB,Cheltenham Borough Council,Economic Development,14037484,51502,Heartflood Limited,R4400-ECD001,Services - Professional Fees,12/06/2015,3500.00,
http://statistics.data.gov.uk/id/local-authority-district/23UB,Cheltenham Borough Council,Cheltenham Business Partnership,14037484,51502,Heartflood Limited,R4400-HLD130,Services - Professional Fees,12/06/2015,3500.00,
http://statistics.data.gov.uk/id/local-authority-district/23UB,Cheltenham Borough Council,Art Gallery & Museum Repairs & Maintenance,14037424,15002,Hellion Environmental Limited,R2080-CUL117,Mechanical Services,12/06/2015,520.84,
http://statistics.data.gov.uk/id/local-authority-district/23UB,Cheltenham Borough Council,Recreation Centre Repairs & Maintenance,14037439,15017,Hellion Environmental Limited,R2080-REC111,Mechanical Services,12/06/2015,545.63,
http://statistics.data.gov.uk/id/local-authority-district/23UB,Cheltenham Borough Council,General Fund Balance Sheet,14037313,tax from election payments may 2015,HMRC - CBC Election Staff,B6110-BAL100,Short term Creditors - PAYE and NI,05/06/2015,11544.60,
http://statistics.data.gov.uk/id/local-authority-district/23UB,Cheltenham Borough Council,General Fund Balance Sheet,14037704,CIS DEDUCT 150615,HMRC (CBC - CIS),B6220-BAL100,CIS Deductions Control (reallocated),15/06/2015,2727.30,
http://statistics.data.gov.uk/id/local-authority-district/23UB,Cheltenham Borough Council,General Fund Balance Sheet,14037758,CIS DEDUCTIONS 0605-050615,HMRC (CBC - CIS),B6220-BAL100,CIS Deductions Control (reallocated),17/06/2015,3001.00,
http://statistics.data.gov.uk/id/local-authority-district/23UB,Cheltenham Borough Council,Car Park Income Collection,14037465,21725,Hoge 100 Business Systems Limited,R4534-CPK002,IT - Maint Agreements,12/06/2015,1114.45,
http://statistics.data.gov.uk/id/local-authority-district/23UB,Cheltenham Borough Council,Repairs and Maintenance,14037693,150255aa2,Ian Williams Limited,R2060-HRA100,R & M of Build Cyclical Painting Communal Areas,12/06/2015,30131.32,
http://statistics.data.gov.uk/id/local-authority-district/23UB,Cheltenham Borough Council,Planning Policy,14037690,1493,Inovem Limited,R4400-PLP001,Services - Professional Fees,19/06/2015,16570.00,
http://statistics.data.gov.uk/id/local-authority-district/23UB,Cheltenham Borough Council,Press & PR/Communications,14037148,33870,Jadu Limited,R4534-SUP018,IT - Maint Agreements,05/06/2015,6000.00,
http://statistics.data.gov.uk/id/local-authority-district/23UB,Cheltenham Borough Council,Car Parks - Off Street Operations,14037643,240615,John Ryde Commercial,R2200-CPK001,Rent,19/06/2015,8875.00,
http://statistics.data.gov.uk/id/local-authority-district/23UB,Cheltenham Borough Council,Cheltenham Depot,14037112,5905,JS Facilities Group Limited,R4401-ADB103,Services - Fees and Charges,12/06/2015,1281.00,
http://statistics.data.gov.uk/id/local-authority-district/23UB,Cheltenham Borough Council,Car Parks - Off Street Operations,14037113,5981,JS Facilities Group Limited,R4401-CPK001,Services - Fees and Charges,05/06/2015,3050.00,
http://statistics.data.gov.uk/id/local-authority-district/23UB,Cheltenham Borough Council,Play areas enhancement,14037737,SI217567,Kompan Limited,C4000-CAP102,Acquisition of Equipment,19/06/2015,12137.00,
http://statistics.data.gov.uk/id/local-authority-district/23UB,Cheltenham Borough Council,New Cremators,14037728,INV-001077,Lepus Consulting Limited,C1005-CAP001,Surveyors Fees,26/06/2015,673.99,
http://statistics.data.gov.uk/id/local-authority-district/23UB,Cheltenham Borough Council,New Cremators,14037890,inv-001085,Lepus Consulting Limited,C1005-CAP001,Surveyors Fees,26/06/2015,1415.87,
http://statistics.data.gov.uk/id/local-authority-district/23UB,Cheltenham Borough Council,Repairs and Maintenance,14037463,1052936,Liberty Gas Group,R2040-HRA100,R & M of Build Central Heating,12/06/2015,9291.25,
http://statistics.data.gov.uk/id/local-authority-district/23UB,Cheltenham Borough Council,Repairs and Maintenance,14037463,1052936,Liberty Gas Group,R2016-HRA100,R & M of Build Void Repairs,12/06/2015,985.00,
http://statistics.data.gov.uk/id/local-authority-district/23UB,Cheltenham Borough Council,Carbon Monoxide Detectors,14037463,1052936,Liberty Gas Group,C1107-CAH020,Building Works,12/06/2015,775.00,
http://statistics.data.gov.uk/id/local-authority-district/23UB,Cheltenham Borough Council,New Heating Installations,14037463,1052936,Liberty Gas Group,C1107-CAH009,Building Works,12/06/2015,3508.00,
http://statistics.data.gov.uk/id/local-authority-district/23UB,Cheltenham Borough Council,Repairs and Maintenance,14037551,1068843,Liberty Gas Group,R2040-HRA100,R & M of Build Central Heating,12/06/2015,39879.59,
http://statistics.data.gov.uk/id/local-authority-district/23UB,Cheltenham Borough Council,New Heating Installations,14037513,1068850,Liberty Gas Group,C1107-CAH009,Building Works,12/06/2015,3485.00,
http://statistics.data.gov.uk/id/local-authority-district/23UB,Cheltenham Borough Council,Repairs and Maintenance,14037799,1070804,Liberty Gas Group,R2040-HRA100,R & M of Build Central Heating,19/06/2015,40134.09,
http://statistics.data.gov.uk/id/local-authority-district/23UB,Cheltenham Borough Council,New Heating Installations,14037798,1070805,Liberty Gas Group,C1107-CAH009,Building Works,19/06/2015,3485.00,
http://statistics.data.gov.uk/id/local-authority-district/23UB,Cheltenham Borough Council,Sustainability Measures,14037565,974,Low Carbon Exchange (LCX Solar Limited),C1107-CAH032,Building Works,12/06/2015,7649.05,
http://statistics.data.gov.uk/id/local-authority-district/23UB,Cheltenham Borough Council,Parks & Gardens Operations,14035681,15047,Lubbe & Sons (Bulbs) Limited,R2075-OPS001,Grounds Maintenance - Contract,26/06/2015,800.00,
http://statistics.data.gov.uk/id/local-authority-district/23UB,Cheltenham Borough Council,Parks & Gardens Operations,14037685,2575,Lushglen Exterior Furniture Renovation Services,R2075-OPS001,Grounds Maintenance - Contract,12/06/2015,665.00,
http://statistics.data.gov.uk/id/local-authority-district/23UB,Cheltenham Borough Council,Neighbourhood works 2012/13,14037748,589,M J Loveridge Limited,C1107-CAH005,Building Works,19/06/2015,1960.00,
http://statistics.data.gov.uk/id/local-authority-district/23UB,Cheltenham Borough Council,Economic Development,14037482,290515,Martin Quantock,R4400-ECD001,Services - Professional Fees,12/06/2015,2240.00,
http://statistics.data.gov.uk/id/local-authority-district/23UB,Cheltenham Borough Council,Cheltenham Business Partnership,14037482,290515,Martin Quantock,R4400-HLD130,Services - Professional Fees,12/06/2015,2240.00,
http://statistics.data.gov.uk/id/local-authority-district/23UB,Cheltenham Borough Council,External Improvements,14037519,5110,Mcdonnell Price Roofing Contractors Limited,C1107-CAH003,Building Works,12/06/2015,7750.95,
http://statistics.data.gov.uk/id/local-authority-district/23UB,Cheltenham Borough Council,External Improvements,14037467,5173,Mcdonnell Price Roofing Contractors Limited,C1107-CAH003,Building Works,12/06/2015,6919.00,
http://statistics.data.gov.uk/id/local-authority-district/23UB,Cheltenham Borough Council,External Improvements,14037466,5195,Mcdonnell Price Roofing Contractors Limited,C1107-CAH003,Building Works,19/06/2015,12286.00,
http://statistics.data.gov.uk/id/local-authority-district/23UB,Cheltenham Borough Council,Recreation Centre Repairs & Maintenance,14037320,5822/90964967,Mitie Pest Control Limited,R2083-REC111,R&M of Build - Routine,12/06/2015,762.00,
http://statistics.data.gov.uk/id/local-authority-district/23UB,Cheltenham Borough Council,Repairs and Maintenance,14037692,22549,Morgan Lambert Limited,R2040-HRA100,R & M of Build Central Heating,19/06/2015,660.00,
http://statistics.data.gov.uk/id/local-authority-district/23UB,Cheltenham Borough Council,Planning Policy,14037567,CTG JCS 002,Mr Ian Kemp,R4400-PLP001,Services - Professional Fees,12/06/2015,3944.72,
http://statistics.data.gov.uk/id/local-authority-district/23UB,Cheltenham Borough Council,"Cemetery, Crematorium and Churchyards",14037488,290515,Mr J Sureda,R4401-CCM001,Services - Fees and Charges,12/06/2015,806.62,
http://statistics.data.gov.uk/id/local-authority-district/23UB,Cheltenham Borough Council,Sports & Open Spaces Operations,14037337,grazing cattlwe for leckhampton hill,Mrs A North (Farmer/Grazier),R2071-OPS002,Open Spaces and Grassed Areas,05/06/2015,1750.00,
http://statistics.data.gov.uk/id/local-authority-district/23UB,Cheltenham Borough Council,Cheltenham Environmental Fund- Parks,14037563,20697,Naturescape,R2075-ENF102,Grounds Maintenance - Contract,12/06/2015,1344.33,
http://statistics.data.gov.uk/id/local-authority-district/23UB,Cheltenham Borough Council,Cheltenham Environmental Fund- Parks,14037563,20697,Naturescape,R2071-ENF102,Open Spaces and Grassed Areas,12/06/2015,907.75,
http://statistics.data.gov.uk/id/local-authority-district/23UB,Cheltenham Borough Council,Sports & Open Spaces Operations,14037563,20697,Naturescape,R4010-OPS002,Materials - Other Materials,12/06/2015,798.92,
http://statistics.data.gov.uk/id/local-authority-district/23UB,Cheltenham Borough Council,Parks & Gardens Operations,14037563,20697,Naturescape,R2706-OPS001,Cleaning - reactive,12/06/2015,1453.17,
http://statistics.data.gov.uk/id/local-authority-district/23UB,Cheltenham Borough Council,Arle Road Nursery Operations,14037161,15/00235/rm/85376,Neil Fletcher,R2078-OPS101,R&M of Build - external structures,12/06/2015,2388.00,
http://statistics.data.gov.uk/id/local-authority-district/23UB,Cheltenham Borough Council,Cemetery & Crematorium Repairs & Maintenance,14037678,2027,Nick Bevan Consulting Limited,R4400-CCM111,Services - Professional Fees,19/06/2015,1950.00,
http://statistics.data.gov.uk/id/local-authority-district/23UB,Cheltenham Borough Council,Cemetery & Crematorium Repairs & Maintenance,14037774,2036,Nick Bevan Consulting Limited,R2004-CCM111,R & M of Build Programmed,26/06/2015,1530.00,
http://statistics.data.gov.uk/id/local-authority-district/23UB,Cheltenham Borough Council,Sheltered Housing,14037508,8440,NKS Contracts (Central) Limited,C1107-CAH014,Building Works,12/06/2015,5602.60,
http://statistics.data.gov.uk/id/local-authority-district/23UB,Cheltenham Borough Council,Fire Protection,14037508,8440,NKS Contracts (Central) Limited,C1107-CAH015,Building Works,12/06/2015,1451.18,
http://statistics.data.gov.uk/id/local-authority-district/23UB,Cheltenham Borough Council,Internal Improvements,14037887,8655,NKS Contracts (Central) Limited,C1107-CAH004,Building Works,26/06/2015,45496.60,
http://statistics.data.gov.uk/id/local-authority-district/23UB,Cheltenham Borough Council,Recreation Centre Repairs & Maintenance,14037369,C6905/15/33,O'Brien & Price Cheltenham Limited,R2004-REC111,R & M of Build Programmed,12/06/2015,1725.00,
http://statistics.data.gov.uk/id/local-authority-district/23UB,Cheltenham Borough Council,CCTV,14037271,595121,OpenView Security Solutions Limited,R4003-CCT001,Tools & Equipment - R & M,05/06/2015,1419.17,
http://statistics.data.gov.uk/id/local-authority-district/23UB,Cheltenham Borough Council,Repairs and Maintenance,14037631,o0382918,Orbis Protect Limited,R2012-HRA100,R & M of Build Standby and Call Out,19/06/2015,1087.03,
http://statistics.data.gov.uk/id/local-authority-district/23UB,Cheltenham Borough Council,Car Parks - Off Street Operations,14037273,UK78778,Parkeon Limited,R4401-CPK001,Services - Fees and Charges,05/06/2015,1798.96,
http://statistics.data.gov.uk/id/local-authority-district/23UB,Cheltenham Borough Council,"Cemetery, Crematorium and Churchyards",14037242,150020387,Pelican Rouge Coffee Solutions Limited,R4016-CCM001,Vending Supplies,05/06/2015,1310.00,
http://statistics.data.gov.uk/id/local-authority-district/23UB,Cheltenham Borough Council,Cemetery & Crematorium Repairs & Maintenance,14037658,3184,PJ Combustion Solutions Limited,R2083-CCM111,R&M of Build - Routine,19/06/2015,2252.00,
http://statistics.data.gov.uk/id/local-authority-district/23UB,Cheltenham Borough Council,Cemetery & Crematorium Repairs & Maintenance,14037657,3185,PJ Combustion Solutions Limited,R2083-CCM111,R&M of Build - Routine,19/06/2015,644.00,
http://statistics.data.gov.uk/id/local-authority-district/23UB,Cheltenham Borough Council,Disabled Facility Grants,14037865,REDACTED,Premiere Healthcare Limited,C5000-CAP221,Grants,26/06/2015,807.20,
http://statistics.data.gov.uk/id/local-authority-district/23UB,Cheltenham Borough Council,Human Resources,14037629,op/1504069,Prolog Print Media Limited,R4010-SUP003,Materials - Other Materials,19/06/2015,885.00,
http://statistics.data.gov.uk/id/local-authority-district/23UB,Cheltenham Borough Council,Development costs - Garages Sites 2,14037637,10238,Quattro Design Architects Limited,C1107-CAH052,Building Works,19/06/2015,850.00,
http://statistics.data.gov.uk/id/local-authority-district/23UB,Cheltenham Borough Council,Development costs - Garages Sites 2,14037636,10239,Quattro Design Architects Limited,C1107-CAH052,Building Works,19/06/2015,675.00,
http://statistics.data.gov.uk/id/local-authority-district/23UB,Cheltenham Borough Council,Environmental Health General,14037496,12024,R H Environmental Limited,R4429-REG001,Services - other fees,12/06/2015,1650.00,
http://statistics.data.gov.uk/id/local-authority-district/23UB,Cheltenham Borough Council,Printing Services,14037172,100209820,Ricoh UK Limited,R4300-SUP022,Printing - Services,12/06/2015,4728.56,
http://statistics.data.gov.uk/id/local-authority-district/23UB,Cheltenham Borough Council,Printing Services,14037708,100230834,Ricoh UK Limited,R4300-SUP022,Printing - Services,19/06/2015,8067.63,
http://statistics.data.gov.uk/id/local-authority-district/23UB,Cheltenham Borough Council,Printing Services,14037795,100233835,Ricoh UK Limited,R4300-SUP022,Printing - Services,26/06/2015,897.77,
http://statistics.data.gov.uk/id/local-authority-district/23UB,Cheltenham Borough Council,Housing Benefit Administration,14037382,9049836872,Royal Mail,R4521-HBA001,Postages - franking machine,05/06/2015,556.70,
http://statistics.data.gov.uk/id/local-authority-district/23UB,Cheltenham Borough Council,Council Tax Collection,14037382,9049836872,Royal Mail,R4521-LTC001,Postages - franking machine,05/06/2015,632.96,
http://statistics.data.gov.uk/id/local-authority-district/23UB,Cheltenham Borough Council,Council Tax Collection,14037609,9049879167,Royal Mail,R4521-LTC001,Postages - franking machine,12/06/2015,503.40,
http://statistics.data.gov.uk/id/local-authority-district/23UB,Cheltenham Borough Council,Council Tax Collection,14037711,9049927593,Royal Mail,R4521-LTC001,Postages - franking machine,19/06/2015,1023.50,
http://statistics.data.gov.uk/id/local-authority-district/23UB,Cheltenham Borough Council,Council Tax Collection,14037797,9049981459,Royal Mail,R4521-LTC001,Postages - franking machine,26/06/2015,1004.47,
http://statistics.data.gov.uk/id/local-authority-district/23UB,Cheltenham Borough Council,Sports & Open Spaces Operations,14037733,127128,RRH Limited T/a Reeds,R2071-OPS002,Open Spaces and Grassed Areas,19/06/2015,3100.00,
http://statistics.data.gov.uk/id/local-authority-district/23UB,Cheltenham Borough Council,Sandford Lido car park,14037701,Dandford Lido May 15,Sandford Parks Lido (Trading) Limited,R5003-CPK103,TPP - Agency Fees,19/06/2015,25561.82,
http://statistics.data.gov.uk/id/local-authority-district/23UB,Cheltenham Borough Council,Sandford Lido car park,14037701,Dandford Lido May 15,Sandford Parks Lido (Trading) Limited,R5003-CPK103,TPP - Agency Fees,19/06/2015,-1683.33,
http://statistics.data.gov.uk/id/local-authority-district/23UB,Cheltenham Borough Council,Sandford Lido car park,14037106,Sandford Lido Apr 15,Sandford Parks Lido (Trading) Limited,R5003-CPK103,TPP - Agency Fees,05/06/2015,18340.01,
http://statistics.data.gov.uk/id/local-authority-district/23UB,Cheltenham Borough Council,Sandford Lido car park,14037106,Sandford Lido Apr 15,Sandford Parks Lido (Trading) Limited,R5003-CPK103,TPP - Agency Fees,05/06/2015,-1683.33,
http://statistics.data.gov.uk/id/local-authority-district/23UB,Cheltenham Borough Council,Car Park Income Collection,14037348,IN141329CT,Scan Coin Limited,R4003-CPK002,Tools & Equipment - R & M,12/06/2015,748.59,
http://statistics.data.gov.uk/id/local-authority-district/23UB,Cheltenham Borough Council,Car Park Income Collection,14037338,498345,Security Plus+ Limited,R4435-CPK002,Cash Collection Contract,12/06/2015,769.62,
http://statistics.data.gov.uk/id/local-authority-district/23UB,Cheltenham Borough Council,Car Park Income Collection,14037729,502771,Security Plus+ Limited,R4435-CPK002,Cash Collection Contract,19/06/2015,823.16,
http://statistics.data.gov.uk/id/local-authority-district/23UB,Cheltenham Borough Council,Recreation Centre Repairs & Maintenance,14037773,496095114,Severn Trent Water,R2402-REC111,Sewerage and Environmental Services,26/06/2015,1812.00,
http://statistics.data.gov.uk/id/local-authority-district/23UB,Cheltenham Borough Council,Parks & Gardens Operations,14037695,24200,Streetmaster (South Wales) Limited,R2500-OPS001,Fixtures and Fittings - Purchases,19/06/2015,750.00,
http://statistics.data.gov.uk/id/local-authority-district/23UB,Cheltenham Borough Council,Car Parks - Off Street R&M,14037578,4736,System Six Design & Build,R2500-CPK101,Fixtures and Fittings - Purchases,19/06/2015,565.95,
http://statistics.data.gov.uk/id/local-authority-district/23UB,Cheltenham Borough Council,Community Development,14037556,80615,Teens in Crisis (TIC+),R6280-COM001,Grants,12/06/2015,1422.84,
http://statistics.data.gov.uk/id/local-authority-district/23UB,Cheltenham Borough Council,Legal,14036282,DEBT103847,Tewkesbury Borough Council,R4400-SUP004,Services - Professional Fees,12/06/2015,2439.00,
http://statistics.data.gov.uk/id/local-authority-district/23UB,Cheltenham Borough Council,Development Control - Applications,14037262,DEBT103985,Tewkesbury Borough Council,R4426-DEV001,Legal Expenses,05/06/2015,1750.00,
http://statistics.data.gov.uk/id/local-authority-district/23UB,Cheltenham Borough Council,Parks & Gardens Operations,14037628,debt104041,Tewkesbury Borough Council,R4317-OPS001,Non Staff Advertising,26/06/2015,838.24,
http://statistics.data.gov.uk/id/local-authority-district/23UB,Cheltenham Borough Council,Income and Expenditure on Investment Properties and Changes in Their Fair Value,14037786,debt104070,Tewkesbury Borough Council,R4426-FIE040,Legal Expenses,26/06/2015,1528.00,
http://statistics.data.gov.uk/id/local-authority-district/23UB,Cheltenham Borough Council,Parks & Gardens Operations,14037668,70008274,The Cheltenham Trust,R4401-OPS001,Services - Fees and Charges,19/06/2015,2200.00,
http://statistics.data.gov.uk/id/local-authority-district/23UB,Cheltenham Borough Council,Civic Events,14037669,70008309,The Cheltenham Trust,R4401-DRM012,Services - Fees and Charges,12/06/2015,1011.00,
http://statistics.data.gov.uk/id/local-authority-district/23UB,Cheltenham Borough Council,Civic Events,14037623,70008630,The Cheltenham Trust,R6280-DRM012,Grants,12/06/2015,20000.00,
http://statistics.data.gov.uk/id/local-authority-district/23UB,Cheltenham Borough Council,Civic Events,14037624,7000864x,The Cheltenham Trust,R6280-DRM012,Grants,12/06/2015,1900.00,
http://statistics.data.gov.uk/id/local-authority-district/23UB,Cheltenham Borough Council,Corporate Management,14037732,581057,The Copyright Licencing Agency Limited,R4401-COR001,Services - Fees and Charges,19/06/2015,907.60,
http://statistics.data.gov.uk/id/local-authority-district/23UB,Cheltenham Borough Council,"Cemetery, Crematorium and Churchyards",14037517,M/ME024/02 010115,The Federation of Burial and Cremation Authorities (FBCA),R4701-CCM001,Subscriptions,12/06/2015,820.10,
http://statistics.data.gov.uk/id/local-authority-district/23UB,Cheltenham Borough Council,General Fund Balance Sheet,14037461,8.50028E+11,The Midcounties Co-operative,B6170-BAL100,Short Term Revenue Creditors (incl RIA) - Other entities and individuals,19/06/2015,2650.00,
http://statistics.data.gov.uk/id/local-authority-district/23UB,Cheltenham Borough Council,Development Control - Applications,14037736,1066965,The Oyster Partnership Limited,R1100-DEV001,Agency Staff,19/06/2015,1114.89,
http://statistics.data.gov.uk/id/local-authority-district/23UB,Cheltenham Borough Council,Development Control - Applications,14037509,1067558,The Oyster Partnership Limited,R1100-DEV001,Agency Staff,12/06/2015,1125.00,
http://statistics.data.gov.uk/id/local-authority-district/23UB,Cheltenham Borough Council,Development Control - Applications,14037490,1067841,The Oyster Partnership Limited,R1100-DEV001,Agency Staff,12/06/2015,1125.45,
http://statistics.data.gov.uk/id/local-authority-district/23UB,Cheltenham Borough Council,Development Control - Applications,14037489,1068138,The Oyster Partnership Limited,R1100-DEV001,Agency Staff,12/06/2015,1506.30,
http://statistics.data.gov.uk/id/local-authority-district/23UB,Cheltenham Borough Council,Development Control - Applications,14037699,1068427,The Oyster Partnership Limited,R1100-DEV001,Agency Staff,12/06/2015,1506.83,
http://statistics.data.gov.uk/id/local-authority-district/23UB,Cheltenham Borough Council,Development Control - Applications,14037884,1069034,The Oyster Partnership Limited,R1100-DEV001,Agency Staff,26/06/2015,1505.48,
http://statistics.data.gov.uk/id/local-authority-district/23UB,Cheltenham Borough Council,Community Welfare Grants,14037618,3021,The Rock,R6280-GBD001,Grants,19/06/2015,1977.22,
http://statistics.data.gov.uk/id/local-authority-district/23UB,Cheltenham Borough Council,Disabled Facility Grants,14037752,REDACTED,The Surveying Practice - Client Account,C5000-CAP221,Grants,19/06/2015,2215.54,
http://statistics.data.gov.uk/id/local-authority-district/23UB,Cheltenham Borough Council,Human Resources,14037351,3047,Tim Kidson & Associates,R4441-SUP003,Occupational Health Fees,12/06/2015,800.00,
http://statistics.data.gov.uk/id/local-authority-district/23UB,Cheltenham Borough Council,Sports & Open Spaces Operations,14037506,1735492,Timbmet Limited,R4010-OPS002,Materials - Other Materials,12/06/2015,593.60,
http://statistics.data.gov.uk/id/local-authority-district/23UB,Cheltenham Borough Council,Repairs and Maintenance,14037103,4001 bhw154,Travis Perkins Trading Co. Limited,R2019-HRA100,R & M of Build Tenant Decoration Allowance,05/06/2015,504.40,
http://statistics.data.gov.uk/id/local-authority-district/23UB,Cheltenham Borough Council,Community Alarms,14037058,3IN/10261276,Tunstall Healthcare (UK) Limited,R4000-SPP002,Equipment Purchase,05/06/2015,1110.00,
http://statistics.data.gov.uk/id/local-authority-district/23UB,Cheltenham Borough Council,"Cemetery, Crematorium and Churchyards",14037028,60000100,Ubico Limited,R3041-CCM001,Transport Dept Charges,05/06/2015,5675.00,
http://statistics.data.gov.uk/id/local-authority-district/23UB,Cheltenham Borough Council,Household Waste,14036474,60005733,Ubico Limited,R5001-WST001,TPP - Major External Contractors,26/06/2015,100665.00,
http://statistics.data.gov.uk/id/local-authority-district/23UB,Cheltenham Borough Council,Trade Waste,14036474,60005733,Ubico Limited,R5001-TRW001,TPP - Major External Contractors,26/06/2015,43815.00,
http://statistics.data.gov.uk/id/local-authority-district/23UB,Cheltenham Borough Council,Recycling Centres,14036474,60005733,Ubico Limited,R5001-RYC004,TPP - Major External Contractors,26/06/2015,43681.67,
http://statistics.data.gov.uk/id/local-authority-district/23UB,Cheltenham Borough Council,Bring Sites,14036474,60005733,Ubico Limited,R5001-RYC005,TPP - Major External Contractors,26/06/2015,11303.33,
http://statistics.data.gov.uk/id/local-authority-district/23UB,Cheltenham Borough Council,Recycling Collection Schemes,14036474,60005733,Ubico Limited,R5001-RYC006,TPP - Major External Contractors,26/06/2015,115078.33,
http://statistics.data.gov.uk/id/local-authority-district/23UB,Cheltenham Borough Council,Green Waste,14036474,60005733,Ubico Limited,R5001-RYC002,TPP - Major External Contractors,26/06/2015,25513.33,
http://statistics.data.gov.uk/id/local-authority-district/23UB,Cheltenham Borough Council,Parks & Gardens Operations,14036474,60005733,Ubico Limited,R5001-OPS001,TPP - Major External Contractors,26/06/2015,43088.33,
http://statistics.data.gov.uk/id/local-authority-district/23UB,Cheltenham Borough Council,Highways Agency Verges & Trees,14036474,60005733,Ubico Limited,R5001-ESR001,TPP - Major External Contractors,26/06/2015,23720.83,
http://statistics.data.gov.uk/id/local-authority-district/23UB,Cheltenham Borough Council,Sports & Open Spaces Operations,14036474,60005733,Ubico Limited,R5001-OPS002,TPP - Major External Contractors,26/06/2015,49405.83,
http://statistics.data.gov.uk/id/local-authority-district/23UB,Cheltenham Borough Council,Arle Road Nursery Operations,14036474,60005733,Ubico Limited,R5001-OPS101,TPP - Major External Contractors,26/06/2015,14624.17,
http://statistics.data.gov.uk/id/local-authority-district/23UB,Cheltenham Borough Council,Street Cleaning,14036474,60005733,Ubico Limited,R5001-STC001,TPP - Major External Contractors,26/06/2015,76410.00,
http://statistics.data.gov.uk/id/local-authority-district/23UB,Cheltenham Borough Council,Public Conveniences,14036474,60005733,Ubico Limited,R5001-REG019,TPP - Major External Contractors,26/06/2015,6239.17,
http://statistics.data.gov.uk/id/local-authority-district/23UB,Cheltenham Borough Council,Supervision and Management,14036474,60005733,Ubico Limited,R5001-HRA110,TPP - Major External Contractors,26/06/2015,27755.67,
http://statistics.data.gov.uk/id/local-authority-district/23UB,Cheltenham Borough Council,Recycling Collection Schemes,14037171,60005804,Ubico Limited,R5001-RYC006,TPP - Major External Contractors,05/06/2015,115078.33,
http://statistics.data.gov.uk/id/local-authority-district/23UB,Cheltenham Borough Council,Recycling,14037171,60005804,Ubico Limited,R5001-RYC001,TPP - Major External Contractors,05/06/2015,25513.33,
http://statistics.data.gov.uk/id/local-authority-district/23UB,Cheltenham Borough Council,Parks & Gardens Operations,14037171,60005804,Ubico Limited,R5001-OPS001,TPP - Major External Contractors,05/06/2015,43088.33,
http://statistics.data.gov.uk/id/local-authority-district/23UB,Cheltenham Borough Council,Highways Agency Verges & Trees,14037171,60005804,Ubico Limited,R5001-ESR001,TPP - Major External Contractors,05/06/2015,23720.83,
http://statistics.data.gov.uk/id/local-authority-district/23UB,Cheltenham Borough Council,Household Waste,14037171,60005804,Ubico Limited,R5001-WST001,TPP - Major External Contractors,05/06/2015,100665.00,
http://statistics.data.gov.uk/id/local-authority-district/23UB,Cheltenham Borough Council,Trade Waste,14037171,60005804,Ubico Limited,R5001-TRW001,TPP - Major External Contractors,05/06/2015,43815.00,
http://statistics.data.gov.uk/id/local-authority-district/23UB,Cheltenham Borough Council,Recycling Centres,14037171,60005804,Ubico Limited,R5001-RYC004,TPP - Major External Contractors,05/06/2015,43681.67,
http://statistics.data.gov.uk/id/local-authority-district/23UB,Cheltenham Borough Council,Bring Sites,14037171,60005804,Ubico Limited,R5001-RYC005,TPP - Major External Contractors,05/06/2015,11303.33,
http://statistics.data.gov.uk/id/local-authority-district/23UB,Cheltenham Borough Council,Sports & Open Spaces Operations,14037171,60005804,Ubico Limited,R5001-OPS002,TPP - Major External Contractors,05/06/2015,49405.83,
http://statistics.data.gov.uk/id/local-authority-district/23UB,Cheltenham Borough Council,Arle Road Nursery Operations,14037171,60005804,Ubico Limited,R5001-OPS101,TPP - Major External Contractors,05/06/2015,14624.17,
http://statistics.data.gov.uk/id/local-authority-district/23UB,Cheltenham Borough Council,Street Cleaning,14037171,60005804,Ubico Limited,R5001-STC001,TPP - Major External Contractors,05/06/2015,76410.00,
http://statistics.data.gov.uk/id/local-authority-district/23UB,Cheltenham Borough Council,Public Conveniences,14037171,60005804,Ubico Limited,R5001-REG019,TPP - Major External Contractors,05/06/2015,6239.17,
http://statistics.data.gov.uk/id/local-authority-district/23UB,Cheltenham Borough Council,Supervision and Management,14037171,60005804,Ubico Limited,R2071-HRA110,Open Spaces and Grassed Areas,05/06/2015,27755.67,
http://statistics.data.gov.uk/id/local-authority-district/23UB,Cheltenham Borough Council,Joint Core Strategy,14037743,2.5E+13,Valuation Office Agency (VOA),R4400-PLP101,Services - Professional Fees,19/06/2015,1300.00,
http://statistics.data.gov.uk/id/local-authority-district/23UB,Cheltenham Borough Council,ICT,14037611,uk10/042015/9702,Vodafone Limited,R4548-SUP005,IT - Cabling and Network,19/06/2015,2541.27,
http://statistics.data.gov.uk/id/local-authority-district/23UB,Cheltenham Borough Council,Parliamentary Elections,14037724,19349,Wernick Hire Limited,R4900-ELE004,Accomodation Costs,19/06/2015,2970.00,
http://statistics.data.gov.uk/id/local-authority-district/23UB,Cheltenham Borough Council,Supervision and Management,14037269,05500352 120515,Zurich Insurance plc (RTB Block Policies),R2801-HRA110,Insurances - Property All Risks,05/06/2015,67876.78,
http://statistics.data.gov.uk/id/local-authority-district/23UB,Cheltenham Borough Council,Insurances,14037353,EI 05H090-0017 130415,Zurich Insurance plc (Zurich Municipal),R2802-SUP035,Insurances - Engineering/Computer,05/06/2015,7440.30,
http://statistics.data.gov.uk/id/local-authority-district/23UB,Cheltenham Borough Council,Insurances,14037356,QLA 05H090-0013-00 150415,Zurich Insurance plc (Zurich Municipal),R2800-SUP035,Insurances - Premises,05/06/2015,215023.77,
http://statistics.data.gov.uk/id/local-authority-district/23UB,Cheltenham Borough Council,Insurances,14037354,QLA 05H090-0023-00 130415,Zurich Insurance plc (Zurich Municipal),R1411-SUP035,Insurance - Public Liability,05/06/2015,48048.88,
http://statistics.data.gov.uk/id/local-authority-district/23UB,Cheltenham Borough Council,Insurances,14037355,TER 05H090-0171-00 130415,Zurich Insurance plc (Zurich Municipal),R2802-SUP035,Insurances - Engineering/Computer,05/06/2015,20375.10,
http://statistics.data.gov.uk/id/local-authority-district/23UB,Cheltenham Borough Council,Homelessness,14037863,REDACTED,Hallam & Co,R6280-HOM001,Grants,26/06/2015,600.00,
http://statistics.data.gov.uk/id/local-authority-district/23UB,Cheltenham Borough Council,Urban Design,14037703,475,Mark Hazell,R4010-URB101,Materials - Other Materials,17/06/2015,4980.00,
http://statistics.data.gov.uk/id/local-authority-district/23UB,Cheltenham Borough Council,Parks & Gardens Operations,14037859,CBC/PL/15/04,REDACTED,R1411-OPS001,Insurance - Public Liability,26/06/2015,1230.60,
http://statistics.data.gov.uk/id/local-authority-district/23UB,Cheltenham Borough Council,Rent Control,14037574,RENT REFUND (REDCATED),REDACTED,R9910-HRA900,Refund of Overpiad Rent,12/06/2015,1441.20,
http://statistics.data.gov.uk/id/local-authority-district/23UB,Cheltenham Borough Council,Homelessness,14037316,REDACTED,REDACTED,R6280-HOM001,Grants,05/06/2015,600.00,
http://statistics.data.gov.uk/id/local-authority-district/23UB,Cheltenham Borough Council,Homelessness,14037862,1600118 REDACTED,Perry Bishop & Leaders,R6280-HOM001,Grants,26/06/2015,600.00,
http://statistics.data.gov.uk/id/local-authority-district/23UB,Cheltenham Borough Council,General Fund Balance Sheet,14037749,payment received in error(ribbex),Ribbex UK,B1670-BAL100,Assets under construction - Other depreciation/impairment movements,19/06/2015,3962.16,
http://statistics.data.gov.uk/id/local-authority-district/23UB,Cheltenham Borough Council,Sports & Open Spaces Operations,14037660,1081973200,RURAL PAYMENTS AGENCY,R2071-OPS002,Open Spaces and Grassed Areas,19/06/2015,1563.14,
http://statistics.data.gov.uk/id/local-authority-district/23UB,Cheltenham Borough Council,Cheltenham Municipal Offices,10015767,direct debit ,NPOWER - MO,R2100-ADB101,Electricity,21/05/2015,3909.27,
http://statistics.data.gov.uk/id/local-authority-district/23UB,Cheltenham Borough Council,Cheltenham Municipal Offices,10015795,direct debit ,CORONA - MO,R2101-ADB101,Gas,29/05/2015,1533.85,
http://statistics.data.gov.uk/id/local-authority-district/23UB,Cheltenham Borough Council,Cheltenham Municipal Offices,10016030,direct debit ,E.ON - MO,R2100-ADB101,Electricity,16/06/2015,3980.37,
http://statistics.data.gov.uk/id/local-authority-district/23UB,Cheltenham Borough Council,Cheltenham Depot,10015767,direct debit ,NPOWER - CENTRAL DEPOT,R2100-ADB103,Electricity,21/05/2015,2339.49,
http://statistics.data.gov.uk/id/local-authority-district/23UB,Cheltenham Borough Council,Cheltenham Depot,10015777,direct debit ,SEVERN TRENT WATER,R2401-ADB103,Water Services - Metered,26/05/2015,816.04,
http://statistics.data.gov.uk/id/local-authority-district/23UB,Cheltenham Borough Council,Cheltenham Depot,10015777,direct debit ,SEVERN TRENT WATER,R2402-ADB103,Sewerage and Environmental Services,26/05/2015,1279.01,
http://statistics.data.gov.uk/id/local-authority-district/23UB,Cheltenham Borough Council,Cheltenham Depot,10015795,direct debit ,CORONA - CENTRAL DEPOT,R2101-ADB103,Gas,29/05/2015,1947.96,
http://statistics.data.gov.uk/id/local-authority-district/23UB,Cheltenham Borough Council,Cheltenham Depot,10016030,direct debit ,E.ON - CENTRAL DEPOT,R2100-ADB103,Electricity,16/06/2015,2312.48,
http://statistics.data.gov.uk/id/local-authority-district/23UB,Cheltenham Borough Council,Cheltenham Depot,10016044,direct debit ,SEVERN TRENT WATER,R2401-ADB103,Water Services - Metered,25/06/2015,788.23,
http://statistics.data.gov.uk/id/local-authority-district/23UB,Cheltenham Borough Council,Cheltenham Depot,10016044,direct debit ,SEVERN TRENT WATER,R2402-ADB103,Sewerage and Environmental Services,25/06/2015,1321.65,
http://statistics.data.gov.uk/id/local-authority-district/23UB,Cheltenham Borough Council,Land Charges,10015868,direct debit ,Bevan Brittan LLP- APPS Claims,R4426-BUC004,Legal Expenses,15/06/2015,120927.54,
http://statistics.data.gov.uk/id/local-authority-district/23UB,Cheltenham Borough Council,Land & Property presale costs,10015997,bank transfer,Sale price - Delta Place,C1001-CAP401,Acquisition Of Buildings,24/06/2015,13750000.00,
http://statistics.data.gov.uk/id/local-authority-district/23UB,Cheltenham Borough Council,"Cemetery, Crematorium and Churchyards",10015777,direct debit ,SOUTHERN ELECTRIC - CEM & CREM,R2100-CCM001,Electricity,26/05/2015,566.55,
http://statistics.data.gov.uk/id/local-authority-district/23UB,Cheltenham Borough Council,"Cemetery, Crematorium and Churchyards",10015795,direct debit ,CORONA - CREM,R2101-CCM001,Gas,29/05/2015,4361.90,
http://statistics.data.gov.uk/id/local-authority-district/23UB,Cheltenham Borough Council,"Cemetery, Crematorium and Churchyards",10016034,direct debit ,SOUTHERN ELECTRIC - CEM & CREM,R2100-CCM001,Electricity,24/06/2015,593.35,
http://statistics.data.gov.uk/id/local-authority-district/23UB,Cheltenham Borough Council,Treasury Management,10015795,direct debit ,HOCA CHGS - APRIL,R4403-COR006,Bank Charges,29/05/2015,629.68,
http://statistics.data.gov.uk/id/local-authority-district/23UB,Cheltenham Borough Council,Treasury Management,10015795,direct debit ,ITEMISED SVC CHGS - APRIL,R4403-COR006,Bank Charges,29/05/2015,1750.82,
http://statistics.data.gov.uk/id/local-authority-district/23UB,Cheltenham Borough Council,Treasury Management,10015903,direct debit ,CARDNET SVC CHG 0738,R4428-COR006,Services - credit card charges,12/06/2015,2027.80,
http://statistics.data.gov.uk/id/local-authority-district/23UB,Cheltenham Borough Council,Treasury Management,10015903,direct debit ,CARDNET SVC CHG 1602,R4428-COR006,Services - credit card charges,12/06/2015,830.87,
http://statistics.data.gov.uk/id/local-authority-district/23UB,Cheltenham Borough Council,Treasury Management,10015903,direct debit ,CARDNET SVC CHG 1866,R4428-COR006,Services - credit card charges,12/06/2015,1608.34,
http://statistics.data.gov.uk/id/local-authority-district/23UB,Cheltenham Borough Council,Treasury Management,10016054,direct debit ,HOCA CHGS - MAY,R4403-COR006,Bank Charges,29/06/2015,632.69,
http://statistics.data.gov.uk/id/local-authority-district/23UB,Cheltenham Borough Council,Treasury Management,10016054,direct debit ,ITEMISED SVC CHGS - MAY,R4403-COR006,Bank Charges,29/06/2015,1692.01,
http://statistics.data.gov.uk/id/local-authority-district/23UB,Cheltenham Borough Council,2020 Vision,10015748,direct debit ,FODC - Transformational Change Awards Funds,R4400-COR102,Services - Professional Fees,05/06/2015,45333.00,
http://statistics.data.gov.uk/id/local-authority-district/23UB,Cheltenham Borough Council,2020 Vision,10015749,direct debit ,WODC - Transformational Change Award,R4400-COR102,Services - Professional Fees,05/06/2015,45333.00,
http://statistics.data.gov.uk/id/local-authority-district/23UB,Cheltenham Borough Council,Car Parks - Off Street Operations,10015777,direct debit ,SOUTHERN ELECTRIC - GROSVENOR TCE CP,R2100-CPK001,Electricity,26/05/2015,950.46,
http://statistics.data.gov.uk/id/local-authority-district/23UB,Cheltenham Borough Council,Car Parks - Off Street Operations,10015777,direct debit ,SOUTHERN ELECTRIC - REGENT ARCADE CP,R2100-CPK001,Electricity,26/05/2015,593.95,
http://statistics.data.gov.uk/id/local-authority-district/23UB,Cheltenham Borough Council,Car Parks - Off Street Operations,10015946,direct debit ,SEVERN TRENT WATER - NORTHFIELD TCE CP,R2402-CPK001,Sewerage and Environmental Services,26/05/2015,707.19,
http://statistics.data.gov.uk/id/local-authority-district/23UB,Cheltenham Borough Council,Car Parks - Off Street Operations,10015999,direct debit ,WORLDPAY STREAMLINE,R4428-CPK001,Services - credit card charges,19/06/2015,2220.35,
http://statistics.data.gov.uk/id/local-authority-district/23UB,Cheltenham Borough Council,Car Parks - Off Street Operations,10016034,direct debit ,SOUTHERN ELECTRIC - GROSVENOR TCE CP,R2100-CPK001,Electricity,24/06/2015,827.20,
http://statistics.data.gov.uk/id/local-authority-district/23UB,Cheltenham Borough Council,Car Parks - Off Street Operations,10016034,direct debit ,SOUTHERN ELECTRIC - REGENT ARCADE CP,R2100-CPK001,Electricity,24/06/2015,602.75,
http://statistics.data.gov.uk/id/local-authority-district/23UB,Cheltenham Borough Council,Car Parks - Off Street Operations,10016044,direct debit ,SEVERN TRENT WATER - NORTHFIELD TCE CP,R2402-CPK001,Sewerage and Environmental Services,25/06/2015,754.33,
http://statistics.data.gov.uk/id/local-authority-district/23UB,Cheltenham Borough Council,Town Hall Operations,10016025,direct debit ,ARCHANT,R4317-CUL102,Non Staff Advertising,22/06/2015,525.00,
http://statistics.data.gov.uk/id/local-authority-district/23UB,Cheltenham Borough Council,Pittville Pump Room Operations,10016044,direct debit ,SEVERN TRENT WATER - PITTVILLE PUMP ROOM,R2402-CUL103,Sewerage and Environmental Services,25/06/2015,1174.30,
http://statistics.data.gov.uk/id/local-authority-district/23UB,Cheltenham Borough Council,Town Hall Repairs & Maintenance,10015767,direct debit ,NPOWER - TH,R2100-CUL112,Electricity,21/05/2015,2335.59,
http://statistics.data.gov.uk/id/local-authority-district/23UB,Cheltenham Borough Council,Town Hall Repairs & Maintenance,10015795,direct debit ,CORONA - TH,R2101-CUL112,Gas,29/05/2015,1395.24,
http://statistics.data.gov.uk/id/local-authority-district/23UB,Cheltenham Borough Council,Town Hall Repairs & Maintenance,10016030,direct debit ,E.ON - TH,R2100-CUL112,Electricity,16/06/2015,2889.53,
http://statistics.data.gov.uk/id/local-authority-district/23UB,Cheltenham Borough Council,Pittville Pump Room Repairs & Maintenance,10015777,direct debit ,SOUTHERN ELECTRIC - PITTVILLE PUMP ROOMS,R2100-CUL113,Electricity,26/05/2015,699.84,
http://statistics.data.gov.uk/id/local-authority-district/23UB,Cheltenham Borough Council,Pittville Pump Room Repairs & Maintenance,10015795,direct debit ,CORONA - PITVILLE PUMP ROOM,R2101-CUL113,Gas,29/05/2015,855.81,
http://statistics.data.gov.uk/id/local-authority-district/23UB,Cheltenham Borough Council,Pittville Pump Room Repairs & Maintenance,10016034,direct debit ,SOUTHERN ELECTRIC - PITTVILLE PUMP ROOMS,R2100-CUL113,Electricity,24/06/2015,725.18,
http://statistics.data.gov.uk/id/local-authority-district/23UB,Cheltenham Borough Council,Art Gallery & Museum Repairs & Maintenance,10015767,direct debit ,NPOWER - AGM,R2100-CUL117,Electricity,21/05/2015,3658.05,
http://statistics.data.gov.uk/id/local-authority-district/23UB,Cheltenham Borough Council,Art Gallery & Museum Repairs & Maintenance,10015777,direct debit ,SOUTHERN ELECTRIC - AGM,R2100-CUL117,Electricity,26/05/2015,2095.95,
http://statistics.data.gov.uk/id/local-authority-district/23UB,Cheltenham Borough Council,Art Gallery & Museum Repairs & Maintenance,10015795,direct debit ,CORONA - AGM,R2101-CUL117,Gas,29/05/2015,1804.90,
http://statistics.data.gov.uk/id/local-authority-district/23UB,Cheltenham Borough Council,Art Gallery & Museum Repairs & Maintenance,10016030,direct debit ,E.ON - AGM,R2100-CUL117,Electricity,16/06/2015,3204.20,
http://statistics.data.gov.uk/id/local-authority-district/23UB,Cheltenham Borough Council,Art Gallery & Museum Repairs & Maintenance,10016034,direct debit ,SOUTHERN ELECTRIC - AGM,R2100-CUL117,Electricity,24/06/2015,903.66,
http://statistics.data.gov.uk/id/local-authority-district/23UB,Cheltenham Borough Council,Art Gallery & Museum Repairs & Maintenance,10016034,direct debit ,SOUTHERN ELECTRIC - AGM2,R2100-CUL117,Electricity,24/06/2015,1145.86,
http://statistics.data.gov.uk/id/local-authority-district/23UB,Cheltenham Borough Council,Xmas in Cheltenham,10016029,direct debit ,NPOWER - XMAS ILLUMINATIONS,R2100-ECD101,Electricity,15/06/2015,2505.63,
http://statistics.data.gov.uk/id/local-authority-district/23UB,Cheltenham Borough Council,Supervision and Management,10015795,direct debit ,CORONA - COOPERS COURT,R2101-HRA110,Gas,29/05/2015,850.93,
http://statistics.data.gov.uk/id/local-authority-district/23UB,Cheltenham Borough Council,Supervision and Management,10015795,direct debit ,CORONA - GILBERT WARD,R2101-HRA110,Gas,29/05/2015,710.55,
http://statistics.data.gov.uk/id/local-authority-district/23UB,Cheltenham Borough Council,Supervision and Management,10015795,direct debit ,CORONA - GOLDFOOT HOUSE,R2101-HRA110,Gas,29/05/2015,1024.80,
http://statistics.data.gov.uk/id/local-authority-district/23UB,Cheltenham Borough Council,Supervision and Management,10015795,direct debit ,CORONA - POPES CLOSE,R2101-HRA110,Gas,29/05/2015,672.26,
http://statistics.data.gov.uk/id/local-authority-district/23UB,Cheltenham Borough Council,Supervision and Management,10015795,direct debit ,CORONA - WALLACE HOUSE,R2101-HRA110,Gas,29/05/2015,837.32,
http://statistics.data.gov.uk/id/local-authority-district/23UB,Cheltenham Borough Council,Supervision and Management,10015886,direct debit ,SOUTHERN ELECTRIC,R2100-HRA110,Electricity,02/06/2015,13966.50,
http://statistics.data.gov.uk/id/local-authority-district/23UB,Cheltenham Borough Council,Arle Road Nursery Operations,10015795,direct debit ,CORONA - ARLE NURSERY,R2101-OPS101,Gas,29/05/2015,3277.06,
http://statistics.data.gov.uk/id/local-authority-district/23UB,Cheltenham Borough Council,Arle Road Nursery Operations,10015889,direct debit ,SEVERN TRENT WATER - ARLE NURSERY,R2401-OPS101,Water Services - Metered,05/06/2015,1040.12,
http://statistics.data.gov.uk/id/local-authority-district/23UB,Cheltenham Borough Council,Arle Road Nursery Operations,10015996,direct debit ,REDACTED,R5001-OPS101,TPP - Major External Contractors,24/06/2015,14149.51,
http://statistics.data.gov.uk/id/local-authority-district/23UB,Cheltenham Borough Council,Recreation Centre Repairs & Maintenance,10015767,direct debit ,NPOWER - REC CENTRE,R2100-REC111,Electricity,21/05/2015,3142.05,
http://statistics.data.gov.uk/id/local-authority-district/23UB,Cheltenham Borough Council,Recreation Centre Repairs & Maintenance,10015767,direct debit ,NPOWER - SWIMMING POOL,R2100-REC111,Electricity,21/05/2015,3252.20,
http://statistics.data.gov.uk/id/local-authority-district/23UB,Cheltenham Borough Council,Recreation Centre Repairs & Maintenance,10015777,direct debit ,SOUTHERN ELECTRIC - POW STADIUM,R2100-REC111,Electricity,26/05/2015,3859.82,
http://statistics.data.gov.uk/id/local-authority-district/23UB,Cheltenham Borough Council,Recreation Centre Repairs & Maintenance,10015777,direct debit ,SEVERN TRENT WATER,R2401-REC111,Water Services - Metered,26/05/2015,1817.37,
http://statistics.data.gov.uk/id/local-authority-district/23UB,Cheltenham Borough Council,Recreation Centre Repairs & Maintenance,10015795,direct debit ,CORONA - REC CENTRE,R2101-REC111,Gas,29/05/2015,11883.72,
http://statistics.data.gov.uk/id/local-authority-district/23UB,Cheltenham Borough Council,Recreation Centre Repairs & Maintenance,10016025,direct debit ,SEVERN TRENT WATER,R2401-REC111,Water Services - Metered,22/06/2015,3082.43,
http://statistics.data.gov.uk/id/local-authority-district/23UB,Cheltenham Borough Council,Recreation Centre Repairs & Maintenance,10016030,direct debit ,E.ON - REC CENTRE,R2100-REC111,Electricity,16/06/2015,3157.88,
http://statistics.data.gov.uk/id/local-authority-district/23UB,Cheltenham Borough Council,Recreation Centre Repairs & Maintenance,10016030,direct debit ,E.ON - SWIMMING POOL,R2100-REC111,Electricity,16/06/2015,2110.56,
http://statistics.data.gov.uk/id/local-authority-district/23UB,Cheltenham Borough Council,Recreation Centre Repairs & Maintenance,10016044,direct debit ,SEVERN TRENT WATER - POW,R2401-REC111,Water Services - Metered,25/06/2015,2189.46,
http://statistics.data.gov.uk/id/local-authority-district/23UB,Cheltenham Borough Council,Recreation Centre Repairs & Maintenance,10016044,direct debit ,SEVERN TRENT WATER - POW,R2402-REC111,Sewerage and Environmental Services,25/06/2015,2142.42,
http://statistics.data.gov.uk/id/local-authority-district/23UB,Cheltenham Borough Council,Public Conveniences,10015946,direct debit ,SEVERN TRENT WATER - BATH TERRACE PC,R2401-REG019,Water Services - Metered,26/05/2015,636.80,
http://statistics.data.gov.uk/id/local-authority-district/23UB,Cheltenham Borough Council,Public Conveniences,10015996,direct debit ,REDACTED,R5001-REG019,TPP - Major External Contractors,24/06/2015,12233.15,
http://statistics.data.gov.uk/id/local-authority-district/23UB,Cheltenham Borough Council,Recycling Centres,10015996,direct debit ,REDACTED,R5001-RYC004,TPP - Major External Contractors,24/06/2015,14556.81,
http://statistics.data.gov.uk/id/local-authority-district/23UB,Cheltenham Borough Council,Telephones,10015885,direct debit ,VIRGIN MEDIA,R4504-SUP006,Comms - Telephone Rental (Expense claims),01/06/2015,1967.54,
http://statistics.data.gov.uk/id/local-authority-district/23UB,Cheltenham Borough Council,Telephones,10015885,direct debit ,VIRGIN MEDIA,R4505-SUP006,Comms - Telephone Call charges (Expense claims),01/06/2015,2036.21,
http://statistics.data.gov.uk/id/local-authority-district/23UB,Cheltenham Borough Council,Built Environment,10016098,Business Charge Card,-,B6170-BAL100,BUSINESS CHG CARD - REDACTED,01/06/2015,728.00,
http://statistics.data.gov.uk/id/local-authority-district/23UB,Cheltenham Borough Council,Cemetery & Crematorium,10016098,Business Charge Card,-,R4000-CCM001,BUSINESS CHG CARD - REDACTED,01/06/2015,632.74,
http://statistics.data.gov.uk/id/local-authority-district/23UB,Cheltenham Borough Council,Cemetery & Crematorium,10015813,Business Charge Card,-,R4000-CCM001,BUSINESS CHG CARD - REDACTED,01/05/2015,945.09,
http://statistics.data.gov.uk/id/local-authority-district/23UB,Cheltenham Borough Council,Parks and Gardens,10016098,Business Charge Card,AML Dorset,R4322-OPS001,BUSINESS CHG CARD - REDACTED - AML DORSET,01/06/2015,641.67,
http://statistics.data.gov.uk/id/local-authority-district/23UB,Cheltenham Borough Council,Counci Tax Collection,10016098,Business Charge Card,HM Courts,R4420-LTC001,BUSINESS CHG CARD - REDACTED- HM COURTS SVC,01/06/2015,570.00,
